bitfinex/quotes_BTCUSD_20240721
["timestamp","ask_amount","ask_price","bid_price","bid_amount"]
[1721560368098,0.03012227,66932.0,66931.0,0.23188533]
[1721560369464,0.03012227,66932.0,66931.0,0.23188523]
[1721560370516,0.03012227,66932.0,66931.0,0.10781659]
[1721560370720,0.0362921,66932.0,66931.0,0.23188523]
[1721560370938,0.03012227,66932.0,66931.0,0.23188523]
[1721560371614,0.03012227,66932.0,66931.0,0.14958523]
[1721560377157,0.03012227,66932.0,66931.0,0.38804155]
[1721560377750,0.03012227,66932.0,66931.0,0.14958523]
[1721560379889,0.03012227,66932.0,66931.0,0.38804161]
[1721560382320,0.09082227,66932.0,66931.0,0.38804161]
[1721560382532,0.09082227,66932.0,66931.0,0.13243264]
[1721560382533,0.24520401,66932.0,66931.0,0.13243264]
[1721560382745,0.34164424,66932.0,66931.0,0.13243264]
[1721560382916,0.34781364,66932.0,66931.0,0.13243264]
[1721560384202,0.32827341,66932.0,66931.0,0.13243264]
[1721560384817,0.32827341,66932.0,66931.0,0.1324414]
[1721560386516,0.03629167,66932.0,66931.0,0.22829399]
[1721560387783,0.03629167,66932.0,66931.0,0.14959399]
[1721560387994,0.03629167,66932.0,66931.0,0.02551659]
[1721560388220,0.03629167,66932.0,66931.0,0.1495933]
[1721560394458,0.03629167,66932.0,66931.0,0.02551659]
[1721560394657,0.03629167,66932.0,66931.0,0.14959354]
[1721560394857,0.03629167,66932.0,66931.0,0.02551659]
[1721560395059,0.03629167,66932.0,66931.0,0.14959355]
[1721560397262,0.03629167,66932.0,66931.0,0.14958695]
[1721560398659,0.03629167,66932.0,66931.0,0.22688695]
[1721560401127,0.03629167,66932.0,66931.0,0.22688522]
[1721560405497,0.03629167,66932.0,66931.0,0.28818522]
[1721560405914,0.03012227,66932.0,66931.0,0.28818522]
[1721560407970,0.03012227,66932.0,66931.0,0.16411659]
[1721560408213,0.03012227,66932.0,66931.0,0.28818502]
[1721560408442,0.03628594,66932.0,66931.0,0.28818502]
[1721560408679,0.03012227,66932.0,66931.0,0.28818502]
[1721560409371,0.00712227,66932.0,66931.0,0.28818502]
[1721560410739,0.00712227,66932.0,66931.0,0.16411659]
[1721560410893,0.00712227,66932.0,66931.0,0.28818492]
[1721560411253,0.03012227,66932.0,66931.0,0.28818492]
[1721560412887,0.03012227,66932.0,66931.0,0.22688492]
[1721560420347,0.0359519,66932.0,66931.0,0.22688492]
[1721560420541,0.0359519,66932.0,66931.0,0.14958446]
[1721560420974,0.0359519,66932.0,66931.0,0.14958461]
[1721560422630,0.0359519,66932.0,66931.0,0.14958941]
[1721560423826,0.0359519,66932.0,66931.0,0.02551659]
[1721560424033,0.0359519,66932.0,66931.0,0.14958917]
[1721560425616,0.1826519,66932.0,66931.0,0.14958917]
[1721560427096,0.1826519,66932.0,66931.0,0.14959054]
[1721560428576,0.0359519,66932.0,66931.0,0.14959054]
[1721560430154,0.0359519,66932.0,66931.0,0.02551659]
[1721560430321,0.0359519,66932.0,66931.0,0.14959041]
[1721560433365,0.0359519,66932.0,66931.0,0.14959044]
[1721560436601,0.0359519,66932.0,66931.0,0.14959045]
[1721560439735,0.0359519,66932.0,66931.0,0.02551659]
[1721560439940,0.0359519,66932.0,66931.0,0.1495896]
[1721560441520,0.0359519,66932.0,66931.0,0.13243701]
[1721560441752,0.1763519,66932.0,66931.0,0.1495896]
[1721560441958,0.1763519,66932.0,66931.0,0.13243701]
[1721560442321,0.1763519,66932.0,66931.0,0.13243709]
[1721560442622,0.1763519,66932.0,66931.0,0.008364]
[1721560442830,0.1763519,66932.0,66931.0,0.14958968]
[1721560445310,0.1763519,66932.0,66931.0,0.02551659]
[1721560445515,0.1763519,66932.0,66931.0,0.14958969]
[1721560446204,0.0359519,66932.0,66931.0,0.14958969]
[1721560446761,0.0359519,66932.0,66931.0,0.1324371]
[1721560448651,0.0359519,66932.0,66931.0,0.13243676]
[1721560450643,0.19033364,66932.0,66931.0,0.13243676]
[1721560451803,0.19033364,66932.0,66931.0,0.13243837]
[1721560452191,0.19033364,66932.0,66931.0,0.008364]
[1721560452384,0.19033364,66932.0,66931.0,0.13243741]
[1721560454956,0.19033364,66932.0,66931.0,0.13243846]
[1721560455134,0.19033364,66932.0,66931.0,0.21233846]
[1721560456701,0.0359519,66932.0,66931.0,0.22949105]
[1721560457369,0.03012227,66932.0,66931.0,0.22949105]
[1721560458479,0.03012227,66932.0,66931.0,0.22949087]
[1721560461330,0.03012227,66932.0,66931.0,0.22736633]
[1721560463584,0.03012227,66932.0,66931.0,0.22112687]
[1721560464588,0.03012227,66932.0,66931.0,0.09705259]
[1721560464822,0.03330375,66932.0,66931.0,0.22112687]
[1721560465021,0.03012227,66932.0,66931.0,0.09705259]
[1721560465347,0.03595339,66932.0,66931.0,0.22112687]
[1721560465753,0.03012227,66932.0,66931.0,0.22112687]
[1721560467782,0.03012227,66932.0,66931.0,0.16719259]
[1721560467995,0.03012227,66932.0,66931.0,0.29126687]
[1721560468141,0.03595339,66932.0,66931.0,0.29126687]
[1721560468347,0.03012227,66932.0,66931.0,0.29126687]
[1721560473049,0.0359526,66932.0,66931.0,0.29219087]
[1721560476940,0.03012227,66932.0,66931.0,0.29219087]
[1721560477594,0.03012227,66932.0,66931.0,0.16811659]
[1721560477797,0.03012227,66932.0,66931.0,0.29218796]
[1721560477987,0.03012227,66932.0,66931.0,0.16811659]
[1721560478115,0.03012227,66932.0,66931.0,0.29218796]
[1721560480660,0.03012227,66932.0,66931.0,0.16811659]
[1721560480859,0.03012227,66932.0,66931.0,0.29218796]
[1721560480860,0.0359521,66932.0,66931.0,0.29218796]
[1721560481068,0.03012227,66932.0,66931.0,0.29218796]
[1721560482742,0.03012227,66932.0,66931.0,0.16811659]
[1721560482966,0.03012227,66932.0,66931.0,0.29218794]
[1721560483096,0.03595111,66932.0,66931.0,0.29218794]
[1721560483302,0.03012227,66932.0,66931.0,0.29218794]
[1721560490558,0.03012227,66932.0,66931.0,0.16811659]
[1721560490777,0.03012227,66932.0,66931.0,0.29218794]
[1721560490986,0.03595062,66932.0,66931.0,0.29218794]
[1721560491387,0.03012227,66932.0,66931.0,0.29218794]
[1721560493556,0.00712227,66932.0,66931.0,0.29517589]
[1721560493883,0.00712227,66932.0,66931.0,0.92467024]
[1721560494083,0.00712227,66932.0,66931.0,0.81252343]
[1721560494716,0.00512227,66932.0,66931.0,0.81252343]
[1721560494923,0.00712227,66932.0,66931.0,1.01391762]
[1721560495910,0.00612227,66932.0,66931.0,1.01391762]
[1721560496361,0.00712227,66932.0,66931.0,1.07291762]
[1721560496678,0.00512227,66932.0,66931.0,1.07291762]
[1721560496894,0.00612227,66932.0,66931.0,1.0758279]
[1721560497306,0.00412227,66932.0,66931.0,1.0638279]
[1721560497509,0.00512227,66932.0,66931.0,1.0778279]
[1721560497708,0.00612227,66932.0,66931.0,1.0808279]
[1721560497922,0.00512227,66932.0,66931.0,1.3242279]
[1721560498127,0.00084,66957.0,66956.0,0.09315259]
[1721560498342,0.0062432,66957.0,66956.0,0.21719395]
[1721560498556,0.02384,66957.0,66956.0,0.21719395]
[1721560498757,0.02923135,66957.0,66956.0,0.21719395]
[1721560499103,0.02384,66957.0,66956.0,0.21719395]
[1721560499469,0.00084,66957.0,66956.0,0.21719395]
[1721560499995,0.00084,66957.0,66956.0,0.21717139]
[1721560500551,0.00784,66957.0,66956.0,0.21817139]
[1721560500751,0.03084,66957.0,66956.0,0.21817139]
[1721560500970,0.04184,66957.0,66956.0,0.21817139]
[1721560501149,0.04737063,66957.0,66956.0,0.21817139]
[1721560501818,0.04737063,66957.0,66956.0,0.14217139]
[1721560501996,0.03637063,66957.0,66956.0,0.14217139]
[1721560502148,0.03084,66957.0,66956.0,0.14217139]
[1721560502399,0.03384,66957.0,66956.0,0.1421711]
[1721560502797,0.04084,66957.0,66956.0,0.14317108]
[1721560502998,0.04084,66957.0,66956.0,0.14217108]
[1721560503398,0.04784,66957.0,66956.0,0.14317108]
[1721560503613,0.02384,66957.0,66956.0,0.14117108]
[1721560503842,0.00084,66957.0,66956.0,0.14117108]
[1721560504068,0.01784,66957.0,66956.0,0.14217108]
[1721560504239,0.04084,66957.0,66956.0,0.14217108]
[1721560504440,0.03384,66957.0,66956.0,0.14117108]
[1721560504598,0.03937137,66957.0,66956.0,0.14117108]
[1721560504801,0.03384,66957.0,66956.0,0.14117108]
[1721560505433,0.03384,66957.0,66956.0,0.14116976]
[1721560505916,0.04084,66957.0,66956.0,0.14216976]
[1721560508553,0.04084,66957.0,66956.0,0.1421715]
[1721560511474,0.04084,66957.0,66956.0,0.01815259]
[1721560511684,0.04325269,66957.0,66956.0,0.14216559]
[1721560511927,0.04084,66957.0,66956.0,0.14216559]
[1721560515375,0.04084,66957.0,66956.0,0.14216582]
[1721560515577,0.04084,66957.0,66956.0,0.1421658]
[1721560518044,0.04084,66957.0,66956.0,0.14216587]
[1721560520059,0.04084,66957.0,66956.0,0.28776587]
[1721560520262,0.04084,66957.0,66956.0,0.22516587]
[1721560520463,0.04084,66957.0,66956.0,0.28776587]
[1721560521081,0.04084,66957.0,66956.0,0.16375259]
[1721560521284,0.04084,66957.0,66956.0,0.28776572]
[1721560521516,0.03084,66957.0,66956.0,0.28676572]
[1721560521733,0.02384,66957.0,66956.0,0.28676572]
[1721560522011,0.00084,66957.0,66956.0,0.28676572]
[1721560522239,0.02384,66957.0,66956.0,0.28676572]
[1721560522875,0.02384,66957.0,66956.0,0.28776572]
[1721560522876,0.03384,66957.0,66956.0,0.28776572]
[1721560523315,0.02384,66957.0,66956.0,0.52511542]
[1721560523550,0.02384,66957.0,66956.0,0.52811542]
[1721560523816,0.02384,66957.0,66956.0,0.47578542]
[1721560524040,0.00084,66957.0,66956.0,0.47578542]
[1721560524262,0.00084,66957.0,66956.0,0.16675259]
[1721560524492,0.00084,66957.0,66956.0,0.47678542]
[1721560524711,0.00084,66957.0,66956.0,0.47578542]
[1721560526426,0.00084,66957.0,66956.0,0.47678542]
[1721560526840,0.00084,66957.0,66956.0,0.47278542]
[1721560527220,0.00584,66957.0,66956.0,0.47278542]
[1721560527446,0.02884,66957.0,66956.0,0.16275259]
[1721560527644,0.02584,66957.0,66956.0,0.47278436]
[1721560527835,0.00284,66957.0,66956.0,0.16575259]
[1721560527965,0.00284,66957.0,66956.0,0.47678436]
[1721560528169,0.00084,66957.0,66956.0,0.47378436]
[1721560529418,0.00084,66957.0,66956.0,0.47578436]
[1721560529846,0.00384,66957.0,66956.0,0.47278436]
[1721560530003,0.02684,66957.0,66956.0,0.47578436]
[1721560530242,0.02384,66957.0,66956.0,0.47578436]
[1721560530474,0.00084,66957.0,66956.0,0.2907653]
[1721560530694,0.00084,66957.0,66956.0,0.47678436]
[1721560532509,0.00084,66957.0,66956.0,0.47578436]
[1721560532954,0.00384,66957.0,66956.0,0.47578436]
[1721560533157,0.02684,66957.0,66956.0,0.41318436]
[1721560533308,0.03237958,66957.0,66956.0,0.41318436]
[1721560533513,0.02937958,66957.0,66956.0,0.41318436]
[1721560533713,0.02937958,66957.0,66956.0,0.10415259]
[1721560533934,0.02937958,66957.0,66956.0,0.41418437]
[1721560536913,0.02937958,66957.0,66956.0,0.10415259]
[1721560537119,0.02937958,66957.0,66956.0,0.41418397]
[1721560537453,0.02937958,66957.0,66956.0,0.41018397]
[1721560538241,0.02937958,66957.0,66956.0,0.41318397]
[1721560538711,0.03037958,66957.0,66956.0,0.41318397]
[1721560539262,0.02937958,66957.0,66956.0,0.41318397]
[1721560539687,0.02937958,66957.0,66956.0,0.41418397]
[1721560539887,0.02384,66957.0,66956.0,0.41418397]
[1721560540063,0.02384,66957.0,66956.0,0.02115259]
[1721560540264,0.02384,66957.0,66956.0,0.33118474]
[1721560540534,0.02384,66957.0,66956.0,0.01815259]
[1721560540719,0.02384,66957.0,66956.0,0.32818474]
[1721560541481,0.02384,66957.0,66956.0,0.33118474]
[1721560542083,0.00084,66957.0,66956.0,0.33118474]
[1721560542237,0.02384,66957.0,66956.0,0.33118474]
[1721560542440,0.02384,66957.0,66956.0,0.37596115]
[1721560543034,0.00084,66957.0,66956.0,0.02115259]
[1721560543241,0.02384,66957.0,66956.0,0.37599122]
[1721560543462,0.02938729,66957.0,66956.0,0.39843514]
[1721560543635,0.02628627,66957.0,66956.0,0.54483514]
[1721560544890,0.02384,66957.0,66956.0,0.87598426]
[1721560545113,0.00084,66957.0,66956.0,0.87598426]
[1721560545229,0.02384,66957.0,66956.0,0.81088426]
[1721560545433,0.02384,66957.0,66956.0,0.41248467]
[1721560545898,0.02384,66957.0,66956.0,0.37602336]
[1721560546529,0.00084,66957.0,66956.0,0.37602336]
[1721560546734,0.02384,66957.0,66956.0,0.37603399]
[1721560547723,0.00084,66957.0,66956.0,0.37603399]
[1721560548499,0.00084,66957.0,66956.0,0.37503399]
[1721560548928,0.00284,66957.0,66956.0,0.37503399]
[1721560549331,0.00084,66957.0,66956.0,0.37503399]
[1721560549526,0.14464,66957.0,66956.0,0.37503399]
[1721560549732,0.17319325,66957.0,66956.0,0.14516984]
[1721560549925,0.17319325,66957.0,66956.0,0.14517447]
[1721560550162,0.16764,66957.0,66956.0,0.14417447]
[1721560550364,0.17010429,66957.0,66956.0,0.14417447]
[1721560550508,0.17519325,66957.0,66956.0,0.12702188]
[1721560550710,0.17519325,66957.0,66956.0,0.14417447]
[1721560551315,0.17519325,66957.0,66956.0,0.14117447]
[1721560551541,0.16964,66957.0,66956.0,0.14117447]
[1721560551925,0.32957796,66957.0,66956.0,0.12402188]
[1721560552123,0.33057796,66957.0,66956.0,0.12402188]
[1721560552460,0.32757796,66957.0,66956.0,0.12402188]
[1721560552802,0.32757796,66957.0,66956.0,0.12802188]
[1721560553234,0.32757796,66957.0,66956.0,0.12702188]
[1721560553440,0.32757796,66957.0,66956.0,0.12703682]
[1721560553645,0.32957796,66957.0,66956.0,0.12703682]
[1721560553851,0.32957796,66957.0,66956.0,0.12403682]
[1721560554065,0.32757796,66957.0,66956.0,0.12403682]
[1721560554526,0.33257796,66957.0,66956.0,0.12503682]
[1721560555231,0.33357796,66957.0,66956.0,0.12503682]
[1721560555754,0.33257796,66957.0,66956.0,0.12503682]
[1721560556024,0.33657796,66957.0,66956.0,0.12503682]
[1721560556260,0.33257796,66957.0,66956.0,0.12503682]
[1721560556499,0.33157796,66957.0,66956.0,0.12403682]
[1721560556730,0.34078096,66957.0,66956.0,0.12403682]
[1721560557242,0.34278096,66957.0,66956.0,0.12403682]
[1721560557722,0.34078096,66957.0,66956.0,0.12403682]
[1721560557958,0.34578096,66957.0,66956.0,0.12503682]
[1721560559587,0.34578096,66957.0,66956.0,0.12503729]
[1721560559826,0.34578096,66957.0,66956.0,0.001]
[1721560569937,0.34573096,66957.0,66956.0,0.001]
[1721560577456,0.26783096,66957.0,66956.0,0.001]
[1721560581319,0.26783096,66957.0,66956.0,0.12504377]
[1721560583929,0.26783096,66957.0,66956.0,0.001]
[1721560584133,0.26783096,66957.0,66956.0,0.12504377]
[1721560586852,0.26783096,66957.0,66956.0,0.001]
[1721560587093,0.26783096,66957.0,66956.0,0.12504377]
[1721560587984,0.20193096,66957.0,66956.0,0.12504377]
[1721560588203,0.19272796,66957.0,66956.0,0.12504377]
[1721560597532,0.23747718,66957.0,66956.0,0.12504377]
[1721560600119,0.23749453,66957.0,66956.0,0.12504378]
[1721560602968,0.23749453,66957.0,66956.0,0.12596778]
[1721560604937,0.23749453,66957.0,66956.0,0.080924]
[1721560605412,0.19272796,66957.0,66956.0,0.080924]
[1721560610935,0.19272796,66957.0,66956.0,0.20495861]
[1721560612358,0.19272796,66957.0,66956.0,0.26695861]
[1721560612596,0.18717174,66957.0,66956.0,0.26695761]
[1721560612998,0.19272129,66957.0,66956.0,0.26695761]
[1721560613319,0.19272129,66957.0,66956.0,0.26695741]
[1721560614848,0.03833955,66957.0,66956.0,0.26695741]
[1721560615062,0.03833955,66957.0,66956.0,0.28411]
[1721560615251,0.03279,66957.0,66956.0,0.28411]
[1721560616796,0.03279,66957.0,66956.0,0.28410433]
[1721560620234,0.03279,66957.0,66956.0,0.28410431]
[1721560620442,0.03279,66957.0,66956.0,0.22210431]
[1721560622551,0.03805031,66957.0,66956.0,0.22210447]
[1721560622975,0.03805031,66957.0,66956.0,0.09807659]
[1721560623233,0.03805031,66957.0,66956.0,0.22210447]
[1721560625400,0.03279,66957.0,66956.0,0.22210447]
[1721560625896,0.03279,66957.0,66956.0,0.28370447]
[1721560629055,0.03279,66957.0,66956.0,0.15967659]
[1721560629314,0.03279,66957.0,66956.0,0.28370398]
[1721560632535,0.03279,66957.0,66956.0,0.28370397]
[1721560635649,0.03279,66957.0,66956.0,0.15967659]
[1721560635840,0.03279,66957.0,66956.0,0.28370397]
[1721560637072,0.03279,66957.0,66956.0,0.22210397]
[1721560637444,0.03522256,66957.0,66956.0,0.14310397]
[1721560637620,0.03805031,66957.0,66956.0,0.14310397]
[1721560638437,0.03805031,66957.0,66956.0,0.14310446]
[1721560638754,0.03279,66957.0,66956.0,0.14310446]
[1721560644820,0.03279,66957.0,66956.0,0.01907659]
[1721560644996,0.03279,66957.0,66956.0,0.14310446]
[1721560645197,0.03804773,66957.0,66956.0,0.14310446]
[1721560645483,0.03279,66957.0,66956.0,0.14310446]
[1721560651265,0.03279,66957.0,66956.0,0.14310415]
[1721560654632,0.03279,66957.0,66956.0,0.14310417]
[1721560655681,0.03279,66957.0,66956.0,0.29010417]
[1721560660853,0.03279,66957.0,66956.0,0.29010045]
[1721560663923,0.03279,66957.0,66956.0,0.29010044]
[1721560670990,0.03279,66957.0,66956.0,0.29009937]
[1721560673618,0.03279,66957.0,66956.0,0.16607659]
[1721560673879,0.03279,66957.0,66956.0,0.29009937]
[1721560679906,0.03279,66957.0,66956.0,0.16607659]
[1721560680122,0.03804925,66957.0,66956.0,0.29009937]
[1721560680335,0.17929,66957.0,66956.0,0.14309937]
[1721560680758,0.18454925,66957.0,66956.0,0.14309937]
[1721560682300,0.18196125,66957.0,66956.0,0.14309937]
[1721560682508,0.18196125,66957.0,66956.0,0.14310303]
[1721560682716,0.176702,66957.0,66956.0,0.14310303]
[1721560683020,0.18209884,66957.0,66956.0,0.14310302]
[1721560685566,0.18209884,66957.0,66956.0,0.01907659]
[1721560685773,0.18209884,66957.0,66956.0,0.14310288]
[1721560686186,0.176702,66957.0,66956.0,0.14310288]
[1721560686603,0.18209884,66957.0,66956.0,0.14310288]
[1721560689473,0.03559884,66957.0,66956.0,0.14310288]
[1721560689700,0.030202,66957.0,66956.0,0.14310288]
[1721560689910,0.03559789,66957.0,66956.0,0.14310288]
[1721560691103,0.030202,66957.0,66956.0,0.14310288]
[1721560691270,0.03560086,66957.0,66956.0,0.14310288]
[1721560691988,0.03560086,66957.0,66956.0,0.01907659]
[1721560692194,0.03560086,66957.0,66956.0,0.14310288]
[1721560695150,0.03560086,66957.0,66956.0,0.14310287]
[1721560695586,0.03560086,66957.0,66956.0,0.01907659]
[1721560695785,0.03560086,66957.0,66956.0,0.14310287]
[1721560696635,0.03560086,66957.0,66956.0,0.29030287]
[1721560697024,0.030202,66957.0,66956.0,0.29030287]
[1721560698282,0.030202,66957.0,66956.0,0.29029968]
[1721560698642,0.031042,66957.0,66956.0,0.29029968]
[1721560701531,0.031042,66957.0,66956.0,0.29029903]
[1721560702712,0.00984,66957.0,66956.0,0.52866127]
[1721560703116,0.00984,66957.0,66956.0,0.57350386]
[1721560704262,0.00984,66957.0,66956.0,0.52866127]
[1721560704686,0.00984,66957.0,66956.0,0.52865227]
[1721560707858,0.00984,66957.0,66956.0,0.16627659]
[1721560708077,0.00984,66957.0,66956.0,0.52865227]
[1721560708279,0.00984,66957.0,66956.0,0.16627659]
[1721560708482,0.00984,66957.0,66956.0,0.52865227]
[1721560709337,0.00984,66957.0,66956.0,0.29029412]
[1721560711053,0.00984,66957.0,66956.0,0.10157659]
[1721560711222,0.00984,66957.0,66956.0,0.46395113]
[1721560711452,0.00984,66957.0,66956.0,0.50878129]
[1721560711655,0.00984,66957.0,66956.0,0.46395113]
[1721560713766,0.00984,66957.0,66956.0,0.80665992]
[1721560713965,0.00984,66957.0,66956.0,0.89632024]
[1721560714209,0.00984,66957.0,66956.0,0.80665992]
[1721560714558,0.00984,66957.0,66956.0,0.89624251]
[1721560714767,0.00984,66957.0,66956.0,0.80662382]
[1721560714971,0.00584,66957.0,66956.0,0.80662382]
[1721560715449,0.00684,66957.0,66956.0,0.90522479]
[1721560716489,0.00184,66957.0,66956.0,0.90422479]
[1721560716657,0.00684,66957.0,66956.0,0.89622479]
[1721560716865,0.00784,66957.0,66956.0,0.90522479]
[1721560717190,0.00184,66957.0,66956.0,0.90422479]
[1721560717412,0.00184,66957.0,66956.0,0.58520956]
[1721560717413,0.00084,66957.0,66956.0,0.58520956]
[1721560717605,0.00284,66957.0,66956.0,0.91119129]
[1721560720404,0.00284,66957.0,66956.0,0.82161537]
[1721560720613,0.00284,66957.0,66956.0,0.82160249]
[1721560720997,0.00284,66957.0,66956.0,0.18047659]
[1721560721199,0.00284,66957.0,66956.0,0.82160249]
[1721560723392,0.00284,66957.0,66956.0,0.49048151]
[1721560723595,0.00284,66957.0,66956.0,0.88874125]
[1721560723796,0.00284,66957.0,66956.0,0.57873633]
[1721560724012,0.00284,66957.0,66956.0,0.88874123]
[1721560727085,0.00284,66957.0,66956.0,0.57872511]
[1721560727265,0.00284,66957.0,66956.0,0.55760906]
[1721560730295,0.00284,66957.0,66956.0,0.55760341]
[1721560731154,0.00284,66957.0,66956.0,0.18047659]
[1721560731357,0.00284,66957.0,66956.0,0.55760301]
[1721560731562,0.00284,66957.0,66956.0,0.49048184]
[1721560731736,0.00284,66957.0,66956.0,0.55760301]
[1721560732174,0.00284,66957.0,66956.0,0.49048184]
[1721560732769,0.00284,66957.0,66956.0,0.55760301]
[1721560733106,0.00284,66957.0,66956.0,0.49048184]
[1721560733608,0.00284,66957.0,66956.0,0.4904821]
[1721560734065,0.00284,66957.0,66956.0,0.49048225]
[1721560734683,0.00284,66957.0,66956.0,0.55760331]
[1721560735661,0.00284,66957.0,66956.0,0.82160386]
[1721560739414,0.00284,66957.0,66956.0,0.91109861]
[1721560739857,0.00284,66957.0,66956.0,0.91109421]
[1721560742306,0.00284,66957.0,66956.0,0.91109227]
[1721560744278,0.14114,66957.0,66956.0,0.76469227]
[1721560744485,0.14114,66957.0,66956.0,0.3440721]
[1721560745087,0.14613461,66957.0,66956.0,0.3440721]
[1721560745607,0.14613461,66957.0,66956.0,0.34410262]
[1721560750593,0.00783461,66957.0,66956.0,0.88489329]
[1721560750732,0.00783461,66957.0,66956.0,0.81772555]
[1721560750927,0.00284,66957.0,66956.0,0.81772555]
[1721560751338,0.00284,66957.0,66956.0,0.90728686]
[1721560751541,0.00284,66957.0,66956.0,0.75762555]
[1721560751770,0.00284,66957.0,66956.0,0.75761902]
[1721560752192,0.00284,66957.0,66956.0,0.82479167]
[1721560752394,0.00284,66957.0,66956.0,0.75761902]
[1721560753703,0.00284,66957.0,66956.0,0.67521902]
[1721560754994,0.00284,66957.0,66956.0,0.67522083]
[1721560757387,0.00284,66957.0,66956.0,0.76480225]
[1721560758151,0.00284,66957.0,66956.0,0.03407659]
[1721560758377,0.00284,66957.0,66956.0,0.76482519]
[1721560758577,0.00532973,66957.0,66956.0,0.76482519]
[1721560759236,0.00284,66957.0,66956.0,0.76482519]
[1721560761255,0.00284,66957.0,66956.0,0.03407659]
[1721560761452,0.00284,66957.0,66956.0,0.76484171]
[1721560761660,0.00758395,66957.0,66956.0,0.34409057]
[1721560761861,0.00284,66957.0,66956.0,0.76484246]
[1721560764513,0.00284,66957.0,66956.0,0.76484112]
[1721560766949,0.00284,66957.0,66956.0,0.90584112]
[1721560767705,0.00284,66957.0,66956.0,0.90584149]
[1721560771079,0.00284,66957.0,66956.0,0.90584183]
[1721560771452,0.00284,66957.0,66956.0,0.90584195]
[1721560773297,0.00284,66957.0,66956.0,0.81622073]
[1721560773517,0.00284,66957.0,66956.0,0.9058427]
[1721560774103,0.00284,66957.0,66956.0,0.90584265]
[1721560775281,0.00284,66957.0,66956.0,0.81622068]
[1721560775635,0.00284,66957.0,66956.0,0.90584332]
[1721560776274,0.00284,66957.0,66956.0,0.81622068]
[1721560777044,0.00284,66957.0,66956.0,0.90584376]
[1721560777461,0.00284,66957.0,66956.0,0.81622076]
[1721560778061,0.00284,66957.0,66956.0,0.90584415]
[1721560780600,0.00284,66957.0,66956.0,0.48509027]
[1721560780830,0.00284,66957.0,66956.0,0.90584515]
[1721560782281,0.00284,66957.0,66956.0,0.81622061]
[1721560783924,0.00284,66957.0,66956.0,0.81622057]
[1721560784290,0.00284,66957.0,66956.0,0.17507659]
[1721560784491,0.00284,66957.0,66956.0,0.81622057]
[1721560787039,0.00284,66957.0,66956.0,0.81622049]
[1721560790276,0.00284,66957.0,66956.0,0.92828658]
[1721560791553,0.00284,66957.0,66956.0,0.92829124]
[1721560792705,0.00284,66957.0,66956.0,0.81622049]
[1721560793685,0.00284,66957.0,66956.0,0.81619982]
[1721560796860,0.00284,66957.0,66956.0,0.81617773]
[1721560799871,0.00284,66957.0,66956.0,0.50618478]
[1721560800073,0.00284,66957.0,66956.0,0.81617773]
[1721560805504,0.00284,66957.0,66956.0,0.81617001]
[1721560805916,0.00184,66957.0,66956.0,0.80917001]
[1721560806145,0.00084,66957.0,66956.0,0.80017001]
[1721560806382,0.00184,66957.0,66956.0,0.82017001]
[1721560806802,0.00084,66957.0,66956.0,0.81417001]
[1721560807185,0.00184,66957.0,66956.0,0.82617001]
[1721560807580,0.00084,66957.0,66956.0,0.81417001]
[1721560807782,0.00084,66957.0,66956.0,0.80017001]
[1721560808769,0.00084,66957.0,66956.0,0.17307659]
[1721560808972,0.00084,66957.0,66956.0,0.81417016]
[1721560809173,0.00084,66957.0,66956.0,0.17307659]
[1721560809382,0.00184,66957.0,66956.0,0.82617]
[1721560809712,0.00084,66957.0,66956.0,0.81417]
[1721560809922,0.00084,66957.0,66956.0,0.74857]
[1721560810128,0.00084,66957.0,66956.0,0.73457]
[1721560810354,0.00084,66957.0,66956.0,0.74857]
[1721560810916,0.00084,66957.0,66956.0,0.73457]
[1721560811119,0.00084,66957.0,66956.0,0.75857]
[1721560811120,0.00284,66957.0,66956.0,0.75857]
[1721560811741,0.00284,66957.0,66956.0,0.77257]
[1721560811967,0.00284,66957.0,66956.0,0.46257543]
[1721560812176,0.00284,66957.0,66956.0,0.77255963]
[1721560813577,0.00284,66957.0,66956.0,0.78655963]
[1721560814000,0.00084,66957.0,66956.0,0.76255963]
[1721560815086,0.00084,66957.0,66956.0,0.43146079]
[1721560815304,0.00084,66957.0,66956.0,0.77456082]
[1721560815511,0.00184,66957.0,66956.0,0.77456082]
[1721560818417,0.00184,66957.0,66956.0,0.77454977]
[1721560821363,0.00184,66957.0,66956.0,0.44345602]
[1721560821565,0.00184,66957.0,66956.0,0.77454977]
[1721560824731,0.00184,66957.0,66956.0,0.46457156]
[1721560824929,0.00184,66957.0,66956.0,0.77455213]
[1721560826279,0.00184,66957.0,66956.0,1.51455213]
[1721560826615,0.00184,66957.0,66956.0,0.77455213]
[1721560827833,0.00184,66957.0,66956.0,0.13347659]
[1721560828033,0.00184,66957.0,66956.0,0.77455056]
[1721560833967,0.00184,66957.0,66956.0,1.58455056]
[1721560834365,0.00184,66957.0,66956.0,0.94347659]
[1721560834589,0.00184,66957.0,66956.0,1.58455056]
[1721560837334,0.00184,66957.0,66956.0,1.71896835]
[1721560837542,0.00184,66957.0,66956.0,0.94347659]
[1721560837767,0.00184,66957.0,66956.0,1.71900302]
[1721560837983,0.00184,66957.0,66956.0,1.40902322]
[1721560838189,0.00184,66957.0,66956.0,1.71900303]
[1721560843993,0.00184,66957.0,66956.0,0.94347659]
[1721560844249,0.00184,66957.0,66956.0,1.71903126]
[1721560845355,0.00184,66957.0,66956.0,2.18256306]
[1721560845536,0.00184,66957.0,66956.0,1.71903126]
[1721560845733,0.00184,66957.0,66956.0,2.18256306]
[1721560845934,0.00184,66957.0,66956.0,1.71903126]
[1721560846115,0.00184,66957.0,66956.0,2.04808231]
[1721560846314,0.00184,66957.0,66956.0,1.58455051]
[1721560846557,0.00184,66957.0,66956.0,2.04808231]
[1721560846739,0.00184,66957.0,66956.0,1.58455051]
[1721560846941,0.00184,66957.0,66956.0,2.04808231]
[1721560847140,0.00184,66957.0,66956.0,1.58455051]
[1721560847342,0.00184,66957.0,66956.0,2.04808192]
[1721560847542,0.00184,66957.0,66956.0,1.58455035]
[1721560847745,0.00184,66957.0,66956.0,2.04808177]
[1721560847965,0.00184,66957.0,66956.0,1.5845502]
[1721560848178,0.00184,66957.0,66956.0,2.04808177]
[1721560848376,0.00184,66957.0,66956.0,1.5845502]
[1721560848701,0.00184,66957.0,66956.0,2.04808177]
[1721560848868,0.00184,66957.0,66956.0,1.5845502]
[1721560849089,0.00184,66957.0,66956.0,2.04808177]
[1721560849428,0.00184,66957.0,66956.0,1.5845502]
[1721560849619,0.00184,66957.0,66956.0,2.04808177]
[1721560849819,0.00184,66957.0,66956.0,1.5845502]
[1721560850029,0.00184,66957.0,66956.0,2.04808177]